fUST/lending_fUST_20250302
["ID","MTS","AMOUNT","RATE_DAILY","PERIOD"]
[355052825,1740882649769,-500.0,0.00024931,2]
[355052826,1740882649779,-500.0,0.00024931,2]
[355052827,1740882649788,-500.0,0.00024931,2]
[355052828,1740882649799,-500.0,0.00024931,2]
[355052829,1740882649809,-508.4644925,0.00024931,2]
[355052830,1740882649819,-500.0,0.00024931,2]
[355052831,1740882649828,-500.0,0.00024931,2]
[355052832,1740882649838,-500.0,0.00024931,2]
[355052833,1740882649847,-500.0,0.00024931,2]
[355052834,1740882649857,-500.0,0.00024931,2]
[355052835,1740882649866,-500.0,0.00024931,2]
[355052836,1740882649876,-616.44,0.00024931,2]
[355052837,1740882649886,-500.0,0.00024931,2]
[355052838,1740882649895,-500.0,0.00024931,2]
[355052839,1740882649905,-500.0,0.00024931,2]
[355052840,1740882649915,-506.25000709,0.00024931,2]
[355052841,1740882649924,-507.76775709,0.00024931,2]
[355052842,1740882649934,-500.0,0.00024931,2]
[355052843,1740882649944,-500.0,0.00024931,2]
[355052844,1740882649954,-500.0,0.00024931,2]
[355052845,1740882649963,-500.0,0.00024931,2]
[355052846,1740882649973,-500.0,0.00024931,2]
[355052847,1740882649984,-500.0,0.00024931,2]
[355052848,1740882649994,-500.0,0.00024931,2]
[355052849,1740882650004,-500.0,0.00024931,2]
[355052850,1740882650014,-500.0,0.00024931,2]
[355052851,1740882650024,-500.0,0.00024931,2]
[355052852,1740882650034,-807.41,0.00024931,2]
[355052853,1740882650044,-500.0,0.00024931,2]
[355052854,1740882650054,-500.0,0.00024931,2]
[355052855,1740882650063,-500.0,0.00024931,2]
[355052856,1740882650073,-500.0,0.00024931,2]
[355052857,1740882650083,-500.0,0.00024931,2]
[355052858,1740882650094,-500.0,0.00024931,2]
[355052859,1740882650104,-505.97059065,0.00024931,2]
[355052860,1740882650114,-500.0,0.00024931,2]
[355052861,1740882650123,-525.44,0.00024931,2]
[355052862,1740882650136,-681.9,0.00024931,2]
[355052863,1740882650145,-500.0,0.00024931,2]
[355052864,1740882650155,-506.68733869,0.00024931,2]
[355052865,1740882650164,-500.0,0.00024931,2]
[355052866,1740882650174,-1466.47,0.00024931,2]
[355052867,1740882650185,-500.0,0.00024931,2]
[355052868,1740882650194,-210.8108474,0.00024931,2]
[355052869,1740882650203,-500.0,0.00024931,2]
[355052870,1740882650212,-500.0,0.00024931,2]
[355052871,1740882650222,-500.0,0.00024931,2]
[355052872,1740882650234,-500.0,0.00024931,2]
[355052873,1740882650243,-503.48264203,0.00024931,2]
[355052874,1740882650253,-533.75,0.00024931,2]
[355052875,1740882650262,-500.0,0.00024931,2]
[355052876,1740882650271,-500.0,0.00024931,2]
[355052877,1740882650281,-310.79639761,0.00024931,2]
[355052878,1740882650290,-500.0,0.00024931,2]
[355052879,1740882650299,-663.86,0.00024931,2]
[355052880,1740882650309,-500.0,0.00024931,2]
[355052881,1740882650319,-505.50764057,0.00024931,2]
[355052882,1740882650329,-504.88,0.00024931,2]
[355052883,1740882650338,-819.33,0.00024931,2]
[355052884,1740882650347,-500.95020145,0.00024931,2]
[355052885,1740882650361,-651.68,0.00024931,2]
[355052886,1740882650371,-500.0,0.00024931,2]
[355052887,1740882650381,-1842.76,0.00024931,2]
[355052888,1740882650391,-522.79693662,0.00024931,2]
[355052889,1740882650400,-506.10481207,0.00024931,2]
[355052890,1740882650410,-500.0,0.00024931,2]
[355052891,1740882650420,-500.0,0.00024931,2]
[355052892,1740882650430,-1735.04,0.00024931,2]
[355052893,1740882650439,-500.0,0.00024931,2]
[355052894,1740882650448,-500.0,0.00024931,2]
[355052895,1740882650458,-500.0,0.00024931,2]
[355052896,1740882650468,-500.0,0.00024931,2]
[355052897,1740882650477,-1071.28,0.00024931,2]
[355052898,1740882650487,-500.0,0.00024931,2]
[355052899,1740882650496,-500.0,0.00024931,2]
[355052900,1740882650506,-500.0,0.00024931,2]
[355052901,1740882650515,-500.0,0.00024931,2]
[355052902,1740882650524,-501.79899925,0.00024931,2]
[355052903,1740882650534,-1896.39,0.00024931,2]
[355052904,1740882650544,-500.0,0.00024931,2]
[355052905,1740882650553,-582.8667505,0.00024931,2]
[355052906,1740882650563,-500.0,0.00024931,2]
[355052907,1740882650572,-546.66,0.00024931,2]
[355052908,1740882650581,-764.15,0.00024931,2]
[355052909,1740882650591,-500.0,0.00024931,2]
[355052910,1740882650600,-1761.57,0.00024931,2]
[355052911,1740882650610,-500.0,0.00024931,2]
[355052912,1740882650620,-500.0,0.00024931,2]
[355052913,1740882650629,-500.0,0.00024931,2]
[355052914,1740882650638,-500.0,0.00024931,2]
[355052915,1740882650648,-500.0,0.00024931,2]
[355052916,1740882650657,-500.0,0.00024931,2]
[355052917,1740882650666,-534.41,0.00024931,2]
[355052918,1740882650676,-500.0,0.00024931,2]
[355052919,1740882650685,-500.0,0.00024931,2]
[355052920,1740882650694,-500.0,0.00024931,2]
[355052921,1740882650704,-500.0,0.00024931,2]
[355052922,1740882650713,-500.0,0.00024931,2]
[355052923,1740882650722,-362.23011645,0.00024931,2]
[355052924,1740882650732,-500.0,0.00024931,2]
[355052925,1740882650741,-500.0,0.00024931,2]
[355052926,1740882650750,-500.0,0.00024931,2]
[355052927,1740882650759,-515.75405131,0.00024931,2]
[355052928,1740882650769,-500.0,0.00024931,2]
[355052929,1740882650778,-500.0,0.00024931,2]
[355052930,1740882650788,-674.54,0.00024931,2]
[355052931,1740882650797,-737.33,0.00024931,2]
[355052932,1740882650806,-500.0,0.00024931,2]
[355052933,1740882650815,-1893.03,0.00024931,2]
[355052934,1740882650825,-508.40025378,0.00024931,2]
[355052935,1740882650834,-500.0,0.00024931,2]
[355052936,1740882650843,-500.0,0.00024931,2]
[355052937,1740882650852,-1135.49,0.00024931,2]
[355052938,1740882650861,-500.0,0.00024931,2]
[355052939,1740882650870,-500.0,0.00024931,2]
[355052940,1740882650880,-2396.76,0.00024931,2]
[355052941,1740882650889,-500.0,0.00024931,2]
[355052942,1740882650898,-500.0,0.00024931,2]
[355052943,1740882650907,-500.0,0.00024931,2]
[355052944,1740882650916,-1120.4,0.00024931,2]
[355052945,1740882650925,-500.0,0.00024931,2]
[355052946,1740882650935,-1355.76,0.00024931,2]
[355052947,1740882650944,-500.0,0.00024931,2]
[355052948,1740882650953,-500.0,0.00024931,2]
[355052949,1740882650963,-1263.97,0.00024931,2]
[355052950,1740882650971,-500.0,0.00024931,2]
[355052951,1740882650980,-500.0,0.00024931,2]
[355052952,1740882650991,-500.0,0.00024931,2]
[355052953,1740882651000,-2840.49,0.00024931,2]
[355052954,1740882651009,-500.0,0.00024931,2]
[355052955,1740882651018,-500.0,0.00024931,2]
[355052956,1740882651031,-500.0,0.00024931,2]
[355052957,1740882651047,-500.0,0.00024931,2]
[355052958,1740882651063,-502.61872391,0.00024931,2]
[355052959,1740882651079,-500.0,0.00024931,2]
[355052960,1740882651091,-500.0,0.00024931,2]
[355052961,1740882651105,-500.0,0.00024931,2]
[355052962,1740882651120,-502.80636904,0.00024931,2]
[355052963,1740882651135,-500.0,0.00024931,2]
[355052964,1740882651152,-500.0,0.00024931,2]
[355052965,1740882651166,-501.84793731,0.00024931,2]
[355052966,1740882651180,-500.0,0.00024931,2]
[355052967,1740882651199,-500.0,0.00024931,2]
[355052968,1740882651212,-500.0,0.00024931,2]
[355052969,1740882651228,-1934.08,0.00024931,2]
[355052970,1740882651244,-500.0,0.00024931,2]
[355052971,1740882651257,-500.0,0.00024931,2]
[355052972,1740882651272,-349.53936723,0.00024931,2]
[355052973,1740882651286,-500.0,0.00024931,2]
[355052974,1740882651300,-500.0,0.00024931,2]
[355052975,1740882651313,-503.89202257,0.00024931,2]
[355052976,1740882651326,-2095.11,0.00024931,2]
[355052977,1740882651339,-500.0,0.00024931,2]
[355052978,1740882651353,-500.0,0.00024931,2]
[355052979,1740882651369,-500.0,0.00024931,2]
[355052980,1740882651384,-1279.69,0.00024931,2]
[355052981,1740882651400,-500.0,0.00024931,2]
[355052982,1740882651415,-509.33267781,0.00024931,2]
[355052983,1740882651430,-667.54,0.00024931,2]
[355052984,1740882651442,-500.0,0.00024931,2]
[355052985,1740882651453,-193.81118001,0.00024931,2]
[355052986,1740882651464,-500.0,0.00024931,2]
[355052987,1740882651477,-500.0,0.00024931,2]
[355052988,1740882651495,-500.0,0.00024931,2]
[355052989,1740882651510,-500.0,0.00024931,2]
[355052990,1740882651522,-502.14853851,0.00024931,2]
[355052991,1740882651535,-500.0,0.00024931,2]
[355052992,1740882651547,-816.94,0.00024931,2]
[355052993,1740882651561,-1173.65,0.00024931,2]
[355052994,1740882651575,-1000.0,0.00024931,2]
[355052995,1740882651587,-583.69964488,0.00024931,2]
[355052996,1740882651598,-355.05669421,0.00024931,2]
[355052997,1740882651612,-500.0,0.00024931,2]
[355052998,1740882651625,-500.0,0.00024931,2]
[355052999,1740882651637,-500.0,0.00024931,2]
[355053000,1740882651649,-500.0,0.00024931,2]
[355053001,1740882651662,-500.0,0.00024931,2]
[355053002,1740882651674,-503.25,0.00024931,2]
[355053003,1740882651687,-150.94574009,0.00024931,2]
[355053004,1740882651699,-848.62,0.00024931,2]
[355053005,1740882651712,-500.0,0.00024931,2]
[355053006,1740882651725,-500.0,0.00024931,2]
[355053007,1740882651739,-509.42471023,0.00024931,2]
[355053008,1740882651752,-545.85491778,0.00024931,2]
[355053009,1740882651764,-1917.91,0.00024931,2]
[355053010,1740882651777,-500.0,0.00024931,2]
[355053011,1740882651789,-500.0,0.00024931,2]
[355053012,1740882651802,-500.0,0.00024931,2]
[355053013,1740882651814,-500.0,0.00024931,2]
[355053014,1740882651827,-1006.21,0.00024931,2]
[355053015,1740882651840,-500.0,0.00024931,2]
[355053016,1740882651852,-508.13060245,0.00024931,2]
[355053017,1740882651864,-500.0,0.00024931,2]
[355053018,1740882651876,-507.23901709,0.00024931,2]
[355053019,1740882651889,-341.39583031,0.00024931,2]
[355053020,1740882651901,-1339.71,0.00024931,2]
[355053021,1740882651913,-666.47,0.00024931,2]
[355053022,1740882651926,-500.0,0.00024931,2]
[355053023,1740882651939,-500.0,0.00024931,2]
[355053024,1740882651950,-902.27,0.00024931,2]
[355053025,1740882651962,-500.0,0.00024931,2]
[355053026,1740882651974,-504.50025718,0.00024931,2]
[355053027,1740882651988,-1131.52,0.00024931,2]
[355053028,1740882652001,-2811.74,0.00024931,2]
[355053029,1740882652013,-500.0,0.00024931,2]
[355053030,1740882652025,-500.0,0.00024931,2]
[355053031,1740882652038,-500.0,0.00024931,2]
[355053032,1740882652051,-503.13589269,0.00024931,2]
[355053033,1740882652063,-500.0,0.00024931,2]
[355053034,1740882652080,-500.0,0.00024931,2]
[355053035,1740882652092,-500.0,0.00024931,2]
[355053036,1740882652105,-500.0,0.00024931,2]
[355053037,1740882652117,-500.0,0.00024931,2]
[355053038,1740882652130,-500.0,0.00024931,2]
[355053039,1740882652142,-500.0,0.00024931,2]
[355053040,1740882652156,-508.55194762,0.00024931,2]
[355053041,1740882652169,-500.0,0.00024931,2]
[355053042,1740882652183,-500.0,0.00024931,2]
[355053043,1740882652195,-500.0,0.00024931,2]
[355053044,1740882652207,-504.97,0.00024931,2]
[355053045,1740882652220,-268.22510178,0.00024931,2]
[355053046,1740882652235,-508.76704438,0.00024931,2]
[355053047,1740882652247,-500.0,0.00024931,2]
[355053048,1740882652260,-500.0,0.00024931,2]
[355053049,1740882652272,-500.0,0.00024931,2]
[355053050,1740882652284,-605.59,0.00024931,2]
[355053051,1740882652297,-500.0,0.00024931,2]
[355053052,1740882652310,-750.24,0.00024931,2]
[355053053,1740882652323,-809.06,0.00024931,2]
[355053054,1740882652334,-500.0,0.00024931,2]
[355053055,1740882652346,-952.75,0.00024931,2]
[355053056,1740882652359,-1031.85,0.00024931,2]
[355053057,1740882652372,-500.0,0.00024931,2]
[355053058,1740882652384,-500.0,0.00024931,2]
[355053059,1740882652396,-500.0,0.00024931,2]
[355053060,1740882652409,-500.0,0.00024931,2]
[355053061,1740882652422,-308.80839719,0.00024931,2]
[355053062,1740882652434,-506.00081857,0.00024931,2]
[355053063,1740882652447,-500.0,0.00024931,2]
[355053064,1740882652459,-507.98945232,0.00024931,2]
[355053065,1740882652472,-985.02,0.00024931,2]
[355053066,1740882652484,-1161.12,0.00024931,2]
[355053067,1740882652496,-714.56,0.00024931,2]
[355053068,1740882652509,-500.0,0.00024931,2]
[355053069,1740882652521,-500.0,0.00024931,2]
[355053070,1740882652534,-500.0,0.00024931,2]
[355053071,1740882652546,-506.83518453,0.00024931,2]
[355053072,1740882652558,-500.0,0.00024931,2]
[355053073,1740882652571,-505.97881226,0.00024931,2]
[355053074,1740882652584,-500.0,0.00024931,2]
[355053075,1740882652597,-500.0,0.00024931,2]
[355053076,1740882652609,-500.0,0.00024931,2]
[355053077,1740882652622,-500.0,0.00024931,2]
[355053078,1740882652634,-500.0,0.00024931,2]
[355053079,1740882652646,-866.64,0.00024931,2]
[355053080,1740882652658,-500.0,0.00024931,2]
[355053081,1740882652671,-500.0,0.00024931,2]
[355053082,1740882652685,-500.0,0.00024931,2]
[355053083,1740882652697,-1204.91,0.00024931,2]
[355053084,1740882652709,-500.0,0.00024931,2]
[355053085,1740882652721,-549.09,0.00024931,2]
[355053086,1740882652733,-500.0,0.00024931,2]
[355053087,1740882652745,-444.96371685,0.00024931,2]
[355053088,1740882652756,-1246.51,0.00024931,2]
[355053089,1740882652769,-500.0,0.00024931,2]
[355053090,1740882652782,-500.0,0.00024931,2]
[355053091,1740882652794,-500.0,0.00024931,2]
[355053092,1740882652806,-500.0,0.00024931,2]
[355053093,1740882652819,-506.10389248,0.00024931,2]
[355053094,1740882652831,-667.29,0.00024931,2]
[355053095,1740882652844,-765.3,0.00024931,2]
[355053096,1740882652857,-1220.08,0.00024931,2]
[355053097,1740882652869,-500.0,0.00024931,2]
[355053098,1740882652881,-745.83,0.00024931,2]
[355053099,1740882652894,-500.0,0.00024931,2]
[355053100,1740882652906,-2458.12,0.00024931,2]
[355053101,1740882652918,-500.0,0.00024931,2]
[355053102,1740882652931,-1824.08,0.00024931,2]
[355053103,1740882652944,-511.60835268,0.00024931,2]
[355053104,1740882652956,-500.0,0.00024931,2]
[355053105,1740882652967,-500.0,0.00024931,2]
[355053106,1740882652980,-1914.36,0.00024931,2]
[355053107,1740882652992,-246.217111,0.00024931,2]
[355053108,1740882653004,-514.62597099,0.00024931,2]
[355053109,1740882653016,-2029.55,0.00024931,2]
[355053110,1740882653028,-500.7418629,0.00024931,2]
[355053111,1740882653040,-500.0,0.00024931,2]
[355053112,1740882653052,-500.0,0.00024931,2]
[355053113,1740882653064,-500.0,0.00024931,2]
[355053114,1740882653075,-500.0,0.00024931,2]
[355053115,1740882653087,-500.0,0.00024931,2]
[355053116,1740882653100,-500.0,0.00024931,2]
[355053117,1740882653112,-1928.56,0.00024931,2]
[355053118,1740882653124,-500.0,0.00024931,2]
[355053119,1740882653139,-835.93,0.00024931,2]
[355053120,1740882653151,-500.0,0.00024931,2]
[355053121,1740882653163,-500.0,0.00024931,2]
[355053122,1740882653175,-504.61891973,0.00024931,2]
[355053123,1740882653187,-500.0,0.00024931,2]
[355053124,1740882653199,-500.0,0.00024931,2]
[355053125,1740882653212,-2145.3,0.00024931,2]
[355053126,1740882653226,-928.0,0.00024931,2]
[355053127,1740882653240,-500.0,0.00024931,2]
[355053128,1740882653252,-12080.65,0.00024931,2]
[355053129,1740882653265,-497.16,0.00024931,2]
[355053130,1740882653277,-229019.07,0.00024931,2]
[355053131,1740882653288,-1231.67,0.00024931,2]
[355053132,1740882653301,-500.0,0.00024931,2]
[355053133,1740882653314,-1705.79,0.00024931,2]
[355053134,1740882653326,-500.0,0.00024931,2]
[355053135,1740882653339,-500.0,0.00024931,2]
[355053136,1740882653351,-500.0,0.00024931,2]
[355053137,1740882653364,-551.12,0.00024931,2]
[355053138,1740882653376,-500.0,0.00024931,2]
[355053139,1740882653388,-500.0,0.00024931,2]
[355053140,1740882653400,-500.0,0.00024931,2]
[355053141,1740882653413,-501.57793934,0.00024931,2]
[355053142,1740882653425,-507.08273097,0.00024931,2]
[355053143,1740882653438,-500.0,0.00024931,2]
[355053144,1740882653450,-500.0,0.00024931,2]
[355053145,1740882653460,-500.0,0.00024931,2]
[355053146,1740882653469,-500.0,0.00024931,2]
[355053147,1740882653479,-169.87718865,0.00024931,2]
[355053148,1740882653490,-500.0,0.00024931,2]
[355053149,1740882653864,-4879.73,0.00024931,2]
[355053150,1740882653903,-500.0,0.00024931,2]
[355053151,1740882653922,-500.0,0.00024931,2]
[355053152,1740882653932,-500.0,0.00024931,2]
[355053153,1740882653941,-500.0,0.00024931,2]
[355053154,1740882653951,-500.0,0.00024931,2]
[355053155,1740882653960,-500.0,0.00024931,2]
[355053156,1740882653970,-2047.08,0.00024931,2]
[355053157,1740882653979,-501.44930717,0.00024931,2]
[355053158,1740882653990,-507.46137636,0.00024931,2]
[355053159,1740882653999,-500.0,0.00024931,2]
[355053160,1740882654009,-5858.04,0.00024931,2]
[355053161,1740882654018,-4201.36,0.00024931,2]
[355053162,1740882654027,-500.0,0.00024931,2]
[355053163,1740882654036,-2545.03,0.00024931,2]
[355053164,1740882654046,-661.11,0.00024931,2]
[355053165,1740882654055,-505.55874806,0.00024931,2]
[355053166,1740882654065,-660.12,0.00024931,2]
[355053167,1740882654074,-500.0,0.00024931,2]
[355053168,1740882654083,-500.0,0.00024931,2]
[355053169,1740882654093,-500.0,0.00024931,2]
[355053170,1740882654103,-500.0,0.00024931,2]
[355053171,1740882654112,-2696.97,0.00024931,2]
[355053172,1740882654122,-731.09,0.00024931,2]
[355053173,1740882654131,-500.0,0.00024931,2]
[355053174,1740882654141,-5763.38,0.00024931,2]
[355053175,1740882654154,-1732.36,0.00024931,2]
[355053176,1740882654163,-500.0,0.00024931,2]
[355053177,1740882654172,-500.0,0.00024931,2]
[355053178,1740882654181,-2434.62,0.00024931,2]
[355053179,1740882654193,-497.77111112,0.00024931,2]
[355053180,1740882654204,-500.0,0.00024931,2]
[355053181,1740882654213,-1185.1,0.00024931,2]
[355053182,1740882654225,-503.74226163,0.00024931,2]
[355053183,1740882654236,-500.0,0.00024931,2]
[355053184,1740882654245,-500.0,0.00024931,2]
[355053185,1740882654255,-1720.7,0.00024931,2]
[355053186,1740882654264,-500.0,0.00024931,2]
[355053187,1740882654273,-630.18,0.00024931,2]
[355053188,1740882654283,-1280.93,0.00024931,2]
[355053189,1740882654292,-979.74,0.00024931,2]
[355053190,1740882654301,-1560.48,0.00024931,2]
[355053191,1740882654311,-500.0,0.00024931,2]
[355053192,1740882654320,-229.59524089,0.00024931,2]
[355053193,1740882654330,-757.47,0.00024931,2]
[355053194,1740882654339,-500.0,0.00024931,2]
[355053195,1740882654349,-512.91,0.00024931,2]
[355053196,1740882654358,-500.0,0.00024931,2]
[355053197,1740882654369,-863.81,0.00024931,2]
[355053198,1740882654379,-500.0,0.00024931,2]
[355053199,1740882654389,-500.0,0.00024931,2]
[355053200,1740882654398,-500.0,0.00024931,2]
[355053201,1740882654408,-500.0,0.00024931,2]
[355053202,1740882654417,-1725.4,0.00024931,2]
[355053203,1740882654427,-500.0,0.00024931,2]
[355053204,1740882654437,-513.16732629,0.00024931,2]
[355053205,1740882654446,-500.0,0.00024931,2]
[355053206,1740882654456,-500.0,0.00024931,2]
[355053207,1740882654466,-500.0,0.00024931,2]
[355053208,1740882654475,-500.0,0.00024931,2]
[355053209,1740882654485,-500.0,0.00024931,2]
[355053210,1740882654494,-895.04,0.00024931,2]
[355053211,1740882654505,-500.0,0.00024931,2]
[355053212,1740882654514,-500.0,0.00024931,2]
[355053213,1740882654523,-2304.35,0.00024931,2]
[355053214,1740882654533,-500.0,0.00024931,2]
[355053215,1740882654542,-500.0,0.00024931,2]
[355053216,1740882654552,-18426.38,0.00024931,2]
[355053217,1740882654561,-918.66,0.00024931,2]
[355053218,1740882654571,-500.0,0.00024931,2]
[355053219,1740882654580,-500.0,0.00024931,2]
[355053220,1740882654589,-500.0,0.00024931,2]
[355053221,1740882654599,-500.0,0.00024931,2]
[355053222,1740882654608,-500.0,0.00024931,2]
[355053223,1740882654618,-500.0,0.00024931,2]
[355053224,1740882654627,-500.0,0.00024931,2]
[355053225,1740882654637,-545.63,0.00024931,2]
[355053226,1740882654647,-642.07,0.00024931,2]
[355053227,1740882654656,-648.02,0.00024931,2]
[355053228,1740882654666,-500.0,0.00024931,2]
[355053229,1740882654675,-504.35782079,0.00024931,2]
[355053230,1740882654685,-1137.77,0.00024931,2]
[355053231,1740882654695,-500.0,0.00024931,2]
[355053232,1740882654704,-500.0,0.00024931,2]
[355053233,1740882654714,-13835.87,0.00024931,2]
[355053234,1740882654723,-1322.77,0.00024931,2]
[355053235,1740882654732,-501.34828217,0.00024931,2]
[355053236,1740882654742,-555.00634536,0.00024931,2]
[355053237,1740882654751,-8537.45,0.00024931,2]
[355053238,1740882654761,-500.0,0.00024931,2]
[355053239,1740882654770,-500.0,0.00024931,2]
[355053240,1740882654779,-500.0,0.00024931,2]
[355053241,1740882654789,-500.0,0.00024931,2]
[355053242,1740882654799,-500.0,0.00024931,2]
[355053243,1740882654808,-1329.7,0.00024931,2]
[355053244,1740882654817,-525.29,0.00024931,2]
[355053245,1740882654827,-967.58,0.00024931,2]
[355053246,1740882654837,-500.0,0.00024931,2]
[355053247,1740882654846,-503.54,0.00024931,2]
[355053248,1740882654856,-4131.11,0.00024931,2]
[355053249,1740882654866,-500.0,0.00024931,2]
[355053250,1740882654876,-1423.0,0.00024931,2]
[355053251,1740882654885,-503.90213071,0.00024931,2]
[355053252,1740882654895,-932.56,0.00024931,2]
[355053253,1740882654905,-500.0,0.00024931,2]
[355053254,1740882654914,-509.79,0.00024931,2]
[355053255,1740882654923,-500.0,0.00024931,2]
[355053256,1740882654933,-501.62949322,0.00024931,2]
[355053257,1740882654942,-903.97,0.00024931,2]
[355053258,1740882654952,-347.2810555,0.00024931,2]
[355053259,1740882654962,-500.0,0.00024931,2]
[355053260,1740882654971,-1649.27,0.00024931,2]
[355053261,1740882654981,-500.0,0.00024931,2]
[355053262,1740882654991,-500.0,0.00024931,2]
[355053263,1740882655000,-500.57473978,0.00024931,2]
[355053264,1740882655010,-500.0,0.00024931,2]
[355053265,1740882655019,-500.0,0.00024931,2]
[355053266,1740882655029,-540.8,0.00024931,2]
[355053267,1740882655038,-3226.72,0.00024931,2]
[355053268,1740882655047,-500.0,0.00024931,2]
[355053269,1740882655056,-2125.69,0.00024931,2]
[355053270,1740882655065,-1923.7,0.00024931,2]
[355053271,1740882655074,-500.0,0.00024931,2]
[355053272,1740882655083,-500.0,0.00024931,2]
[355053273,1740882655092,-500.0,0.00024931,2]
[355053274,1740882655101,-505.04559422,0.00024931,2]
[355053275,1740882655110,-999.4,0.00024931,2]
[355053276,1740882655119,-500.0,0.00024931,2]
[355053277,1740882655129,-500.0,0.00024931,2]
[355053278,1740882655138,-7702.6,0.00024931,2]
[355053279,1740882655150,-1378.78,0.00024931,5]
[355053280,1740882655159,-500.0,0.00024931,2]
[355053281,1740882655169,-1809.29,0.00024931,2]
[355053282,1740882655179,-16126.35,0.00024931,2]
[355053283,1740882655188,-567.82,0.00024931,2]
[355053284,1740882655197,-1000.0,0.00024931,2]
[355053285,1740882655207,-500.0,0.00024931,2]
[355053286,1740882655216,-1619.04,0.00024931,2]
[355053287,1740882655226,-500.0,0.00024931,2]
[355053288,1740882655236,-500.0,0.00024931,2]
[355053289,1740882655245,-500.0,0.00024931,2]
[355053290,1740882655255,-855.51,0.00024931,2]
[355053291,1740882655264,-500.0,0.00024931,2]
[355053292,1740882655274,-500.0,0.00024931,2]
[355053293,1740882655283,-1717.17,0.00024931,2]
[355053294,1740882655292,-500.0,0.00024931,2]
[355053295,1740882655302,-500.0,0.00024931,2]
[355053296,1740882655312,-2705.69,0.00024931,2]
[355053297,1740882655321,-500.0,0.00024931,2]
[355053298,1740882655332,-500.0,0.00024931,2]
[355053299,1740882655342,-500.0,0.00024931,2]
[355053300,1740882655351,-500.0,0.00024931,2]
[355053301,1740882655360,-500.0,0.00024931,2]
[355053302,1740882655369,-1700.37,0.00024931,2]
[355053303,1740882655379,-506.66156025,0.00024931,2]
[355053304,1740882655388,-1241.33,0.00024931,2]
[355053305,1740882655397,-500.0,0.00024931,2]
[355053306,1740882655407,-500.0,0.00024931,2]
[355053307,1740882655416,-500.0,0.00024931,2]
[355053308,1740882655426,-500.0,0.00024931,2]
[355053309,1740882655435,-500.0,0.00024931,2]
[355053310,1740882655444,-500.0,0.00024931,2]
[355053311,1740882655454,-234.71664044,0.00024931,2]
[355053312,1740882655464,-3625.46,0.00024931,2]
[355053313,1740882655473,-500.0,0.00024931,2]
[355053314,1740882655482,-2106.88,0.00024931,2]
[355053315,1740882655492,-500.0,0.00024931,2]
[355053316,1740882655502,-3931.29,0.00024931,2]
[355053317,1740882655511,-1305.73,0.00024931,2]
[355053318,1740882655520,-500.0,0.00024931,2]
[355053319,1740882655529,-7044.9,0.00024931,2]
[355053320,1740882655539,-500.0,0.00024931,2]
[355053321,1740882655549,-500.0,0.00024931,2]
[355053322,1740882655558,-500.0,0.00024931,2]
[355053323,1740882655567,-500.0,0.00024931,2]
[355053324,1740882655577,-500.0,0.00024931,2]